fUSD/lending_fUSD_20260126
["ID","MTS","AMOUNT","RATE_DAILY","PERIOD"]
[403678410,1769468917660,-228.76954378,0.00015384,2]
[403678418,1769468927374,-1515.53190199,0.00015385,2]
[403678419,1769468927439,-10000.01,0.00015385,2]
[403678420,1769468927468,-152.32039195,0.00015384,2]
[403678421,1769468927478,-9847.68960805,0.00015385,2]
[403678422,1769468927564,-500.0,0.00015384,2]
[403678423,1769468927596,-500.0,0.00015384,2]
[403678424,1769468927681,-500.0,0.00015384,2]
[403678425,1769468927690,-500.0,0.00015384,2]
[403678426,1769468927699,-7000.01,0.00015385,2]
[403678427,1769468927747,-500.0,0.00015384,2]
[403678428,1769468927816,-500.0,0.00015384,2]
[403678429,1769468927826,-500.0,0.00015384,2]
[403678430,1769468927835,-500.0,0.00015384,2]
[403678431,1769468927844,-7500.01,0.00015385,2]
[403678432,1769468927891,-500.0,0.00015384,2]
[403678433,1769468927900,-500.0,0.00015384,2]
[403678434,1769468927910,-9000.01,0.00015385,2]
[403678435,1769468927974,-500.0,0.00015384,2]
[403678436,1769468928008,-500.0,0.00015384,2]
[403678437,1769468928089,-500.0,0.00015384,2]
[403678438,1769468928100,-500.0,0.00015384,2]
[403678439,1769468928113,-500.0,0.00015384,2]
[403678440,1769468928123,-6500.01,0.00015385,2]
[403678441,1769468928167,-500.0,0.00015384,2]
[403678442,1769468928177,-500.0,0.00015384,2]
[403678443,1769468928187,-9000.01,0.00015385,2]
[403678444,1769468928245,-10000.01,0.00015385,2]
[403678446,1769468932824,-500.0,0.00015384,2]
[403678447,1769468932859,-500.0,0.00015384,2]
[403678448,1769468932892,-300.00000001,0.00015384,2]
[403678449,1769468932925,-500.0,0.00015384,2]
[403678450,1769468932957,-500.0,0.00015384,2]
[403678451,1769468933057,-5400.00999998,0.00015385,2]
[403678452,1769468933192,-10000.01,0.00015385,2]
[403678453,1769468933425,-10000.01,0.00015385,2]
[403678454,1769468933617,-10000.01,0.00015385,2]
[403678455,1769468933784,-10000.01,0.00015385,2]
[403678456,1769468933923,-10000.01,0.00015385,2]
[403678457,1769468934305,-10000.01,0.00015385,2]
[403678458,1769468934386,-10000.01,0.00015385,2]
[403678459,1769468934402,-10000.01,0.00015385,2]
[403678460,1769468938875,-10000.01,0.00015385,2]
[403678461,1769468938979,-10000.01,0.00015385,2]
[403678462,1769468939114,-10000.01,0.00015385,2]
[403678463,1769468939371,-10000.01,0.00015385,2]
[403678464,1769468939574,-10000.01,0.00015385,2]
[403678465,1769468939718,-10000.01,0.00015385,2]
[403678466,1769468939849,-10000.01,0.00015385,2]
[403678467,1769468939968,-10000.01,0.00015385,2]
[403678468,1769468940112,-10000.01,0.00015385,2]
[403678598,1769468979598,-300.0,0.00015238,2]
[403678600,1769468981204,-311.9700595,0.00015238,2]
[403678604,1769468983396,-445.55790925,0.00015238,2]
[403678607,1769468986191,-300.0,0.00015238,2]
[403678608,1769468989498,-254.36856334,0.00015238,2]
[403678609,1769468991463,-300.0,0.00015238,2]
[403678610,1769468994717,-217.50417788,0.00015238,2]
[403678611,1769468996806,-209.78581975,0.00015238,2]
[403678614,1769468998344,-163.83968361,0.00015238,2]
[403678616,1769469000622,-834.03947645,0.00015238,2]
[403678631,1769469031516,-1200.0,0.00015237,2]
[403678632,1769469031527,-195.0,0.00015238,2]
[403678633,1769469031537,-233.07568092,0.00015277,2]
[403678634,1769469031547,-300.0,0.00015314,2]
[403678635,1769469031556,-300.0,0.00015314,2]
[403678636,1769469031566,-208.13248175,0.00015315,2]
[403678637,1769469031578,-555.26888642,0.00015315,2]
[403678638,1769469031590,-741.79478212,0.00015315,2]
[403678639,1769469031601,-999.0,0.00015315,2]
[403678640,1769469031612,-449.6702639,0.00015315,2]
[403678641,1769469031623,-420.50753327,0.00015315,2]
[403678642,1769469031632,-569.65,0.00015375,2]
[403678643,1769469031642,-569.65,0.00015375,2]
[403678644,1769469031651,-569.65,0.00015375,2]
[403678645,1769469031660,-359.33734572,0.00015375,2]
[403678646,1769469031671,-210.31265428,0.00015375,2]
[403678647,1769469031680,-569.65,0.00015375,2]
[403678648,1769469031690,-150.0,0.00015376,2]
[403678649,1769469031699,-151.0,0.00015382,2]
[403678650,1769469031708,-500.0,0.00015384,2]
[403678651,1769469031718,-308.41503386,0.00015384,2]
[403678652,1769469031727,-473.59659455,0.00015384,2]
[403678653,1769469031736,-500.0,0.00015384,2]
[403678654,1769469031746,-500.0,0.00015384,2]
[403678655,1769469031764,-500.0,0.00015384,2]
[403678656,1769469031775,-500.0,0.00015384,2]
[403678658,1769469031784,-80.96119493,0.00015384,2]
[403678660,1769469031796,-414.63000001,0.00015384,2]
[403678664,1769469031816,-4.40880506,0.00015384,2]
[403678666,1769469031825,-301.44301436,0.00015384,2]
[403678668,1769469031836,-198.55698564,0.00015384,2]
[403678670,1769469031846,-467.31151092,0.00015384,2]
[403678672,1769469031858,-32.68848908,0.00015384,2]
[403678674,1769469031867,-500.0,0.00015384,2]
[403678676,1769469031877,-500.0,0.00015384,2]
[403678678,1769469031887,-500.0,0.00015384,2]
[403678680,1769469031896,-500.0,0.00015384,2]
[403678682,1769469031906,-500.0,0.00015384,2]
[403678684,1769469031915,-500.0,0.00015384,2]
[403678687,1769469031928,-500.0,0.00015384,2]
[403678689,1769469031937,-500.0,0.00015384,2]
[403678691,1769469031947,-500.0,0.00015384,2]
[403678693,1769469031956,-307.98043277,0.00015384,2]
[403678695,1769469031968,-192.01956723,0.00015384,2]
[403678697,1769469031977,-500.0,0.00015384,2]
[403678699,1769469031987,-500.0,0.00015384,2]
[403678701,1769469031996,-500.0,0.00015384,2]
[403678703,1769469032006,-500.0,0.00015384,2]
[403678705,1769469032015,-500.0,0.00015384,2]
[403678707,1769469032024,-500.0,0.00015384,2]
[403678708,1769469032034,-500.0,0.00015384,2]
[403678710,1769469032043,-500.0,0.00015384,2]
[403678712,1769469032053,-500.0,0.00015384,2]
[403678714,1769469032063,-218.04861335,0.00015384,2]
[403678717,1769469032078,-281.95138665,0.00015384,2]
[403678719,1769469032088,-500.0,0.00015384,2]
[403678721,1769469032097,-419.93313573,0.00015384,2]
[403678930,1769469037647,-80.06686427,0.00015384,2]
[403678931,1769469037657,-478.31699242,0.00015384,2]
[403678932,1769469037669,-21.68300758,0.00015384,2]
[403678933,1769469037679,-500.0,0.00015384,2]
[403678934,1769469037691,-297.39295235,0.00015384,2]
[403678935,1769469037702,-202.60704765,0.00015384,2]
[403678936,1769469037711,-500.0,0.00015384,2]
[403678937,1769469037721,-500.0,0.00015384,2]
[403678938,1769469037732,-500.0,0.00015384,2]
[403678939,1769469037742,-500.0,0.00015384,2]
[403678940,1769469037752,-340.31194584,0.00015384,2]
[403678941,1769469037765,-159.68805416,0.00015384,2]
[403678942,1769469037774,-500.0,0.00015384,2]
[403678943,1769469037785,-500.0,0.00015384,2]
[403678944,1769469037796,-28.06278581,0.00015384,2]
[403678945,1769469037817,-401.616215,0.00015384,2]
[403678968,1769469039703,-70.32099919,0.00015384,2]
[403678969,1769469039713,-500.0,0.00015384,2]
[403678970,1769469039723,-500.0,0.00015384,2]
[403678971,1769469039734,-500.0,0.00015384,2]
[403678972,1769469039743,-500.0,0.00015384,2]
[403678973,1769469039753,-310.02772867,0.00015384,2]
[403678974,1769469039763,-500.0,0.00015384,2]
[403678975,1769469039772,-500.0,0.00015384,2]
[403678976,1769469039781,-500.0,0.00015384,2]
[403678977,1769469039790,-500.0,0.00015384,2]
[403678978,1769469039799,-500.0,0.00015384,2]
[403678979,1769469039808,-500.0,0.00015384,2]
[403678980,1769469039817,-500.0,0.00015384,2]
[403678981,1769469039826,-500.0,0.00015384,2]
[403678982,1769469039835,-500.0,0.00015384,2]
[403678983,1769469039844,-250.0,0.00015384,2]
[403678984,1769469039853,-889.22141191,0.00015384,2]
[403678985,1769469039863,-827.88280608,0.00015384,2]
[403678986,1769469039872,-7840.48230285,0.00015384,2]
[403678987,1769469039881,-300.0,0.00015384,2]
[403678988,1769469039891,-3378.53471156,0.00015384,2]
[403678989,1769469039900,-754236.52848998,0.00015385,2]
[403678990,1769469039910,-346.09135761,0.00015415,2]
[403678991,1769469039919,-10350.24670245,0.00015415,2]
[403678992,1769469039929,-151.0,0.00015435,2]
[403678993,1769469039938,-70357.62118704,0.00015486,2]
[403678994,1769469039947,-2979.151,0.00015494,2]
[403678995,1769469039957,-256.206,0.00015494,2]
[403678996,1769469039977,-200.0,0.00015496,2]
[403678997,1769469039996,-151.0,0.00015496,2]
[403678998,1769469040015,-151.0,0.00015496,2]
[403678999,1769469040034,-151.0,0.00015496,2]
[403679000,1769469040054,-194.2044672,0.00015496,2]
[403679001,1769469040074,-151.0,0.00015496,2]
[403679002,1769469040084,-151.0,0.00015496,2]
[403679003,1769469040093,-200.0,0.00015496,2]
[403679004,1769469040103,-151.0,0.00015496,2]
[403679005,1769469040112,-151.0,0.00015496,2]
[403679006,1769469040121,-151.0,0.00015496,2]
[403679007,1769469040133,-500.0,0.00015496,2]
[403679008,1769469040154,-151.0,0.00015496,2]
[403679009,1769469040165,-151.0,0.00015496,2]
[403679010,1769469040179,-201.83206214,0.00015496,2]
[403679011,1769469040201,-151.0,0.00015496,2]
[403679012,1769469040220,-151.0,0.00015496,2]
[403679013,1769469040229,-151.0,0.00015496,2]
[403679014,1769469040239,-151.0,0.00015496,2]
[403679016,1769469040248,-151.0,0.00015496,2]
[403679018,1769469040257,-151.0,0.00015496,2]
[403679020,1769469040267,-151.0,0.00015496,2]
[403679022,1769469040276,-151.0,0.00015496,2]
[403679023,1769469040285,-151.0,0.00015496,2]
[403679025,1769469040294,-151.0,0.00015496,2]
[403679027,1769469040517,-500.0,0.00015496,2]
[403679028,1769469040527,-500.0,0.00015496,2]
[403679029,1769469040538,-200.0,0.00015496,2]
[403679030,1769469040547,-500.0,0.00015496,2]
[403679031,1769469040557,-500.0,0.00015496,2]
[403679032,1769469040566,-500.0,0.00015496,2]
[403679033,1769469040575,-500.0,0.00015496,2]
[403679034,1769469040584,-500.0,0.00015496,2]
[403679035,1769469040593,-500.0,0.00015496,2]
[403679036,1769469040602,-500.0,0.00015496,2]
[403679037,1769469040612,-500.0,0.00015496,2]
[403679038,1769469040621,-500.0,0.00015496,2]
[403679039,1769469040631,-248.34286879,0.00015496,2]
[403679040,1769469040642,-151.0,0.00015496,2]
[403679041,1769469040652,-151.0,0.00015496,2]
[403679042,1769469040663,-151.0,0.00015496,2]
[403679043,1769469040672,-151.0,0.00015496,2]
[403679044,1769469040681,-151.0,0.00015496,2]
[403679045,1769469040690,-151.0,0.00015496,2]
[403679046,1769469040699,-151.0,0.00015496,2]
[403679047,1769469040709,-151.0,0.00015496,2]
[403679048,1769469040719,-500.0,0.00015496,2]
[403679049,1769469040729,-151.0,0.00015496,2]
[403679050,1769469040738,-500.0,0.00015496,2]
[403679051,1769469040748,-151.0,0.00015496,2]
[403679052,1769469040757,-500.0,0.00015496,2]
[403679053,1769469040767,-151.0,0.00015496,2]
[403679054,1769469040776,-500.0,0.00015496,2]
[403679055,1769469040786,-151.0,0.00015496,2]
[403679056,1769469040796,-500.0,0.00015496,2]
[403679057,1769469040806,-500.0,0.00015496,2]
[403679058,1769469040816,-500.0,0.00015496,2]
[403679059,1769469040825,-500.0,0.00015496,2]
[403679060,1769469040837,-500.0,0.00015496,2]
[403679061,1769469040847,-500.0,0.00015496,2]
[403679062,1769469040856,-500.0,0.00015496,2]
[403679063,1769469040866,-500.0,0.00015496,2]
[403679064,1769469040875,-1281.87621466,0.00015505,5]
[403679065,1769469040885,-1281.87621466,0.00015505,5]
[403679066,1769469040896,-1000.0,0.00015515,2]
[403679067,1769469040906,-150.00161509,0.00015566,2]
[403679068,1769469040915,-500.0,0.00015614,2]
[403679069,1769469040924,-500.0,0.00015614,2]
[403679070,1769469040933,-494.24186226,0.00015614,2]
[403679071,1769469040942,-500.0,0.00015614,2]
[403679072,1769469040951,-500.0,0.00015614,2]
[403679073,1769469040972,-500.0,0.00015614,2]
[403679074,1769469040982,-500.0,0.00015614,2]
[403679075,1769469040991,-506.97630376,0.00015614,2]
[403679076,1769469041001,-342.1996177,0.00015614,2]
[403679077,1769469041010,-500.0,0.00015614,2]
[403679078,1769469041020,-500.0,0.00015614,2]
[403679079,1769469041030,-500.0,0.00015614,2]
[403679080,1769469041040,-500.0,0.00015614,2]
[403679081,1769469041051,-216.46,0.00015874,2]
[403679082,1769469041062,-362.0,0.00015918,2]
[403679083,1769469041071,-200.0,0.00016044,2]
[403679084,1769469041080,-200.0,0.00016044,2]
[403679085,1769469041091,-500.0,0.00016044,2]
[403679086,1769469041100,-174.61919141,0.00016061,2]
[403679087,1769469041111,-250.0,0.00016061,2]
[403679088,1769469041121,-250.0,0.00016061,2]
[403679089,1769469041135,-250.0,0.00016061,2]
[403679090,1769469041145,-250.0,0.00016061,2]
[403679091,1769469041155,-250.0,0.00016061,2]
[403679092,1769469041166,-250.0,0.00016061,2]
[403679093,1769469041176,-250.0,0.00016061,2]
[403679094,1769469041186,-250.0,0.00016061,2]
[403679095,1769469041196,-372.38303059,0.00016061,2]
[403679096,1769469041205,-250.0,0.00016061,2]
[403679097,1769469041218,-212.9003876,0.00016061,2]
[403679098,1769469041230,-578.20924308,0.00016061,2]
[403679099,1769469041239,-3543.0,0.00016061,2]
[403679100,1769469041248,-201.93286099,0.00016061,2]
[403679101,1769469041258,-250.0,0.00016061,2]
[403679102,1769469041267,-250.0,0.00016061,2]
[403679103,1769469041277,-250.0,0.00016061,2]
[403679104,1769469041287,-250.0,0.00016061,2]
[403679105,1769469041297,-250.0,0.00016061,2]
[403679106,1769469041307,-3253.57751508,0.00016061,2]
[403679107,1769469041316,-823.77908852,0.00016061,2]
[403679108,1769469041327,-250.0,0.00016061,2]
[403679109,1769469041338,-250.0,0.00016061,2]
[403679110,1769469041347,-250.0,0.00016061,2]
[403679111,1769469041357,-250.0,0.00016061,2]
[403679112,1769469041366,-250.0,0.00016061,2]
[403679113,1769469041376,-250.0,0.00016061,2]
[403679114,1769469041386,-250.0,0.00016061,2]
[403679115,1769469041395,-500.0,0.00016061,2]
[403679116,1769469041405,-500.0,0.00016061,2]
[403679117,1769469041414,-695.39793187,0.00016061,2]
[403679118,1769469041423,-500.0,0.00016061,2]
[403679119,1769469041432,-500.0,0.00016061,2]
[403679120,1769469041443,-500.0,0.00016061,2]
[403679121,1769469041452,-500.0,0.00016061,2]
[403679122,1769469041462,-151.0,0.00016061,2]
[403679123,1769469041472,-500.0,0.00016061,2]
[403679124,1769469041482,-500.0,0.00016061,2]
[403679125,1769469041491,-500.0,0.00016061,2]
[403679126,1769469041500,-500.0,0.00016061,2]
[403679127,1769469041510,-500.0,0.00016061,2]
[403679128,1769469041519,-151.0,0.00016061,2]
[403679129,1769469041528,-500.0,0.00016061,2]
[403679130,1769469041538,-322.6107,0.00016061,2]
[403679131,1769469041548,-3441.35,0.00016078,2]
[403679132,1769469041557,-150.0,0.0001617,2]
[403679133,1769469041571,-10350.2467024,0.00016358,2]
[403679134,1769469041581,-3374.37394741,0.00016358,2]
[403679135,1769469041591,-500.0,0.00016438,2]
[403679136,1769469041600,-500.0,0.00016438,2]
[403679137,1769469041609,-500.0,0.00016438,2]
[403679138,1769469041619,-615.43799282,0.00016438,2]
[403679139,1769469041627,-517.0,0.00016438,2]
[403679140,1769469041637,-1600.0,0.00016463,2]
[403679141,1769469041646,-510.0,0.00016507,2]
[403679142,1769469041661,-362.0,0.00016515,2]
[403679143,1769469041670,-166.66,0.00016592,2]
[403679144,1769469041679,-201.23825789,0.00016592,2]
[403679145,1769469041688,-181.08010149,0.00016609,2]
[403679146,1769469041697,-209.40437684,0.00016609,2]
[403679147,1769469041706,-854.2589148,0.00016609,2]
[403679148,1769469041719,-151.0,0.00016609,2]
[403679149,1769469041727,-186.02316312,0.00016729,2]
[403679150,1769469041737,-300.0,0.00016755,2]
[403679151,1769469041745,-420.0,0.00016755,2]
[403679152,1769469041755,-1680.0,0.00016757,2]
[403679153,1769469041764,-195.0,0.00016761,2]
[403679154,1769469041773,-200.0,0.00016761,2]
[403679155,1769469041783,-200.0,0.00016761,2]
[403679156,1769469041792,-2500.0,0.00016761,2]
[403679157,1769469041801,-690.49961014,0.00016761,2]
[403679158,1769469041811,-600.0,0.00016762,2]
[403679159,1769469041819,-468.76,0.00016837,2]
[403679160,1769469041828,-468.76,0.00016837,2]
[403679161,1769469041837,-250.0,0.00016871,2]
[403679162,1769469041847,-3441.35,0.00016882,2]
[403679163,1769469041857,-250.0,0.00016922,2]
[403679164,1769469041866,-195.0,0.00016922,2]
[403679165,1769469041875,-150.00161509,0.00016932,2]
[403679166,1769469041884,-441.72886304,0.00016957,2]
[403679167,1769469041894,-250.0,0.00017,2]
[403679168,1769469041903,-192.0,0.00017,2]
[403679169,1769469041912,-5053.0,0.00017038,2]
[403679170,1769469041921,-362.0,0.00017112,2]
[403679171,1769469041930,-166.66,0.0001714,2]
[403679172,1769469041939,-187.78006525,0.00017157,2]
[403679173,1769469041948,-217.15233878,0.00017157,2]
[403679174,1769469041957,-885.86649465,0.00017157,2]
[403679175,1769469041966,-262.5256687,0.00017157,2]
[403679176,1769469041975,-10350.2467024,0.00017301,2]
[403679177,1769469041984,-159.33586698,0.00017397,2]
[403679178,1769469041993,-3374.37394741,0.00017401,2]
[403679179,1769469042003,-334.5472959,0.0001743,2]
[403679180,1769469042012,-1000.0,0.00017534,2]
[403679181,1769469042020,-300.0,0.00017664,2]
[403679182,1769469042029,-150.0,0.00017675,2]
[403679183,1769469042039,-3441.35,0.00017686,2]
[403679184,1769469042048,-166.66,0.00017688,2]
[403679185,1769469042057,-489.0,0.00017699,2]
[403679186,1769469042066,-150.0,0.00017699,2]
[403679187,1769469042076,-500.0,0.00017699,2]
[403679188,1769469042085,-150.0,0.00017699,2]
[403679189,1769469042094,-194.72792766,0.00017705,2]
[403679190,1769469042103,-266.74224609,0.00017705,2]
[403679191,1769469042112,-918.64355495,0.00017705,2]
[403679192,1769469042121,-701.0,0.00017707,2]
[403679193,1769469042131,-362.0,0.00017709,2]
[403679194,1769469042142,-490.91807064,0.00017729,2]
[403679195,1769469042151,-489.0,0.00017754,2]
[403679196,1769469042160,-500.0,0.00017754,2]
[403679197,1769469042169,-2793.25,0.00017779,2]
[403679198,1769469042181,-2000.0,0.000178,2]
[403679199,1769469042191,-1000.0,0.00017808,2]
[403679200,1769469042201,-489.0,0.00017809,2]
[403679201,1769469042213,-2000.0,0.0001782,2]
[403679202,1769469042223,-2000.0,0.0001782,2]
[403679203,1769469042232,-489.0,0.00017863,2]
[403679204,1769469042241,-382.11374073,0.000179,2]
[403679205,1769469042252,-489.0,0.00017918,2]
[403679206,1769469042261,-489.0,0.00017973,2]
[403679207,1769469042271,-224.739409,0.00017989,2]
[403679208,1769469042279,-150.0,0.00017997,2]
[403679209,1769469042289,-285.919462,0.00017997,2]
[403679210,1769469042298,-314440.62334325,0.00018,2]
[403679215,1769469042744,-1.7e-07,0.00018,2]
[403679216,1769469042954,-4800.3890111,0.00018,2]
[403679223,1769469045740,-300.57795713,0.00015306,2]
[403679224,1769469045758,-7607.6784,0.00015306,2]
[403679227,1769469046020,-1140.71316387,0.00015306,2]
[403679229,1769469046035,-880.15614813,0.00015385,2]
[403679235,1769469067682,-500.0,0.00015384,2]
[403679236,1769469067718,-260.02772867,0.00015384,2]
[403679237,1769469067770,-8479.95454266,0.00015385,2]
[403679238,1769469067892,-10000.01,0.00015385,2]
[403679239,1769469068161,-10000.01,0.00015385,2]
[403679240,1769469068258,-10000.01,0.00015385,2]
[403679241,1769469068417,-10000.01,0.00015385,2]
[403679243,1769469068536,-10000.01,0.00015385,2]
[403679244,1769469068645,-10000.01,0.00015385,2]
[403679246,1769469072531,1367.0,0.000141,5]
[403679247,1769469073686,-10000.01,0.00015385,2]
[403679248,1769469074077,-10000.01,0.00015385,2]
[403679249,1769469074201,-10000.01,0.00015385,2]
[403679250,1769469074346,-10000.01,0.00015385,2]
[403679251,1769469074493,-10000.01,0.00015385,2]
[403679252,1769469074820,-10000.01,0.00015385,2]
[403679253,1769469074855,-10000.01,0.00015385,2]
[403679261,1769469099691,-683.40766045,0.00015077,2]
[403679263,1769469103257,-250.0,0.00015077,2]
[403679264,1769469105472,-253.89176773,0.00015077,2]
[403679266,1769469109254,-183.95,0.00015077,2]
[403679269,1769469130071,-300.0,0.00015001,2]
[403679270,1769469133117,-588.36629673,0.00015001,2]
[403679274,1769469174561,5035.32,0.0002,120]
[403679275,1769469236513,10000.0,0.00015001,2]
[403679276,1769469247954,10000.0,0.00021,30]
[403679277,1769469258684,10000.0,0.00015001,2]
[403679278,1769469270049,5410.77,0.00015001,2]
[403679279,1769469441081,298.933131,0.00014964,2]
[403679280,1769469467136,-250.0,0.00015039,2]
[403679281,1769469467169,-1399.94757182,0.00015077,2]
[403679282,1769469467200,-238.586,0.00015077,2]
[403679283,1769469467229,-214.50838485,0.00015091,2]
[403679284,1769469467265,-150.00116621,0.00015191,2]
[403679285,1769469467296,-214.50838485,0.00015199,2]
[403679286,1769469467327,-1221.1636,0.00015285,2]
[403679287,1769469467359,-122.57978454,0.00015285,2]
[403679288,1769469467518,-2377.42021546,0.00015285,2]
[403679289,1769469467549,-2362.06176325,0.00015306,2]
[403679290,1769469467640,-1455.65187903,0.00015306,2]
[403679291,1769469467713,-2911.30375806,0.00015306,2]
[403679292,1769469467800,-4177.40248388,0.00015306,2]
[403679293,1769469467810,-214.50838485,0.00015306,2]
[403679294,1769469467819,-151.0,0.00015382,2]
[403679295,1769469467828,-1200.0,0.00015383,2]
[403679296,1769469467836,-500.0,0.00015384,2]
[403679297,1769469467845,-199.83691361,0.00015384,2]
[403679298,1769469467856,-500.0,0.00015384,2]
[403679299,1769469467865,-133.12095958,0.00015384,2]
[403679300,1769469467910,-366.87904042,0.00015384,2]
[403679301,1769469467943,-500.0,0.00015384,2]
[403679302,1769469467976,-500.0,0.00015384,2]
[403679303,1769469468010,-500.0,0.00015384,2]
[403679304,1769469468046,-500.0,0.00015384,2]
[403679305,1769469468080,-488.25946944,0.00015384,2]
[403679306,1769469468118,-500.0,0.00015384,2]
[403679307,1769469468151,-500.0,0.00015384,2]
[403679308,1769469468184,-500.0,0.00015384,2]
[403679309,1769469468217,-500.0,0.00015384,2]
[403679310,1769469468324,-500.0,0.00015384,2]
[403679311,1769469468335,-500.0,0.00015384,2]
[403679312,1769469468344,-500.0,0.00015384,2]
[403679313,1769469468353,-500.0,0.00015384,2]
[403679314,1769469468363,-233.56773208,0.00015384,2]
[403679315,1769469468404,-266.43226792,0.00015384,2]
[403679316,1769469468439,-500.0,0.00015384,2]
[403679317,1769469468475,-500.0,0.00015384,2]
[403679318,1769469468511,-500.0,0.00015384,2]
[403679319,1769469468543,-300.0,0.00015384,2]
[403679320,1769469468701,-300.4467725,0.00015385,2]
[403679321,1769469468723,-488.25946944,0.00015385,2]
[403679322,1769469468908,-500.0,0.00015385,2]
[403679323,1769469468967,-500.0,0.00015385,2]
[403679324,1769469468987,-500.0,0.00015385,2]
[403679325,1769469469015,-500.0,0.00015385,2]
[403679326,1769469469031,-289.73298028,0.00015385,2]
[403679327,1769469469064,-266.43226792,0.00015385,2]
[403679328,1769469469082,-500.0,0.00015385,2]
[403679329,1769469469106,-500.0,0.00015385,2]
[403679330,1769469469121,-500.0,0.00015385,2]
[403679331,1769469469138,-300.0,0.00015385,2]
[403679332,1769469469155,-5867.14546416,0.00015385,2]
[403679333,1769469469176,-10000.01,0.00015385,2]
[403679334,1769469469203,-10000.01,0.00015385,2]
[403679335,1769469469230,-10000.01,0.00015385,2]
[403679336,1769469469284,-10000.01,0.00015385,2]
[403679337,1769469469305,-10000.01,0.00015385,2]
[403679338,1769469472164,-10000.01,0.00015385,2]
[403679339,1769469472295,-10000.01,0.00015385,2]
[403679340,1769469613441,-300.0,0.00015384,2]
[403679341,1769469613474,-300.0,0.00015384,2]
[403679342,1769469613506,-300.0,0.00015384,2]
[403679343,1769469613537,-1200.0,0.00015384,2]
[403679344,1769469613643,-5800.01,0.00015385,2]
[403679345,1769469625825,-10000.01,0.00015385,2]
[403679350,1769469802803,-3217.62,0.00015077,2]
[403679351,1769469802861,-277.564,0.00015077,2]
[403679352,1769469802927,-878.42279494,0.00015306,2]
[403679353,1769469803022,-1252.79641012,0.00015306,2]
[403679355,1769469812298,-300.0,0.00015374,2]
[403679356,1769469812328,-200.0,0.00015375,2]
[403679357,1769469812358,-151.0,0.00015375,2]
[403679358,1769469812391,-151.0,0.00015375,2]
[403679359,1769469812421,-151.0,0.00015375,2]
[403679360,1769469812455,-151.0,0.00015375,2]
[403679361,1769469812485,-151.0,0.00015375,2]
[403679362,1769469812514,-151.0,0.00015375,2]
[403679363,1769469812783,-151.0,0.00015375,2]
[403679364,1769469812813,-500.0,0.00015375,2]
[403679365,1769469812844,-151.0,0.00015375,2]
[403679366,1769469812875,-151.0,0.00015375,2]
[403679367,1769469812905,-500.0,0.00015375,2]
[403679368,1769469812934,-151.0,0.00015375,2]
[403679369,1769469812965,-151.0,0.00015375,2]
[403679370,1769469812995,-151.0,0.00015375,2]
[403679371,1769469813027,-151.0,0.00015375,2]
[403679372,1769469813059,-151.0,0.00015375,2]
[403679373,1769469813091,-500.0,0.00015375,2]
[403679374,1769469813123,-500.0,0.00015375,2]
[403679376,1769469813155,-151.0,0.00015375,2]
[403679377,1769469813186,-151.0,0.00015375,2]
[403679378,1769469813799,-168.01,0.00015375,2]
[403679379,1769469817186,-223.090002,0.00015306,2]